[Event "WYCC 2018 O18"]
[Site "Halkidiki"]
[Date "2018.10.24"]
[Round "6"]
[White "Polyakov, Fedor"]
[Black "Pantzar, Milton"]
[Result "0-1"]
[ECO "A41"]
[WhiteElo "2036"]
[BlackElo "2326"]
[Annotator "NA"]
[PlyCount "124"]
[EventDate "2018.10.20"]
[EventType "swiss"]
[EventCountry "GRE"]
[SourceTitle "playchess.com"]
[Source "ChessBase"]
[SourceQuality "1"]
[TimeControl "40/5400+30:1800+30"]

1. d4 {[%emt 0:00:00]} d6 {[%emt 0:00:00]} 2. c4 {[%emt 0:00:00]} e5 {[%emt 0:00:00]} 3. d5 {[%emt 0:00:00]} f5 {[%emt 0:00:04]} 4. e4 {[%emt 0:00:23]} fxe4 {[%emt 0:00:50]} 5. Nc3 {[%emt 0:00:07]} Nf6 {[%emt 0:00:03] A41: 1 d4 d6: Tartakower System and Modern Defence} (5... Bf5 6. Nge2 Nf6 7. Ng3 Bg6 8. h4 h6 9. Be3 c6 10. h5 Bh7 11. Qb3 Qc7 12. Be2 Nbd7 13. O-O {½-½ (30) Omar,N (2353)-Moussard,J (2559) Biel 2018}) 6. Bg5 {[%emt 0:00:45]} Be7 {[%emt 0:03:47]} 7. Bxf6 {[%emt 0:05:13]} gxf6 $146 {[%emt 0:01:25]} ({Predecessor:} 7... Bxf6 8. Nxe4 O-O 9. Bd3 c6 10. Ne2 cxd5 11. cxd5 Na6 12. N2c3 Bf5 13. O-O {½-½ (29) Roubalik,J (2391)-Zvolanek,L (2176) Vsetin 2017}) 8. Qh5+ {[%emt 0:01:43]} Kf8 {[%emt 0:00:19]} 9. Nxe4 {[%emt 0:04:38]} f5 {[%emt 0:01:27]} 10. Nc3 {[%emt 0:07:00]} Kg7 {[%emt 0:15:57]} 11. f3 {[%emt 0:12:42]} Qe8 {[%emt 0:03:05]} 12. Qh3 {[%emt 0:03:51]} f4 {[%emt 0:12:22]} 13. g4 {[%emt 0:00:25]} h5 {[%emt 0:00:43]} 14. O-O-O {[%emt 0:00:52]} hxg4 {[%emt 0:07:28]} 15. Qg2 {[%emt 0:01:25]} Qg6 {[%emt 0:03:13]} 16. Bd3 {[%emt 0:03:00]} Qh6 {[%emt 0:00:44]} 17. Nge2 {[%emt 0:09:45]} Qh3 {[%emt 0:10:43]} 18. Qxh3 {[%emt 0:03:06]} Rxh3 {[%emt 0:02:01]} 19. fxg4 {[%emt 0:00:02]} Na6 {[%emt 0:01:20]} 20. Ne4 {[%emt 0:01:02]} Bd7 {[%emt 0:01:57]} 21. Ng1 {[%emt 0:05:07]} Re3 {[%emt 0:03:46]} 22. h3 {[%emt 0:00:30]} Rh8 {[%emt 0:01:04]} 23. Rh2 {[%emt 0:02:36]} Nb4 {[%emt 0:06:57]} 24. Bb1 {[%emt 0:01:20]} Nxa2+ {[%emt 0:00:15]} 25. Kd2 {[%emt 0:00:20]} Nb4 {[%emt 0:03:52]} 26. Rf1 {[%emt 0:04:30]} Rb3 {[%emt 0:05:52]} 27. Kc1 {[%emt 0:01:55]} Nd3+ {[%emt 0:01:04]} 28. Bxd3 {[%emt 0:00:01]} Rxd3 {[%emt 0:00:06]} 29. Rf3 {[%emt 0:00:04]} Rd4 {[%emt 0:06:43]} 30. Nd2 {[%emt 0:00:01]} e4 {[%emt 0:00:43]} 31. Rc3 {[%emt 0:02:37]} f3 {[%emt 0:03:57]} 32. Nb3 {[%emt 0:01:46]} Bf6 {[%emt 0:01:19]} 33. Nxf3 {[%emt 0:01:26]} exf3 {[%emt 0:00:26]} 34. Nxd4 {[%emt 0:00:02]} Bxd4 {[%emt 0:00:55]} 35. Rxf3 {[%emt 0:00:03]} Be5 {[%emt 0:00:39]} 36. Rhf2 {[%emt 0:04:02]} Be8 {[%emt 0:00:25]} 37. Kc2 {[%emt 0:05:21]} Bg6+ {[%emt 0:00:16]} 38. Kb3 {[%emt 0:00:05]} a6 {[%emt 0:01:34]} 39. Rf1 {[%emt 0:01:14]} Bd4 {[%emt 0:00:47]} 40. Re1 {[%emt 0:00:00]} Be5 {[%emt 0:00:00]} 41. Ref1 {[%emt 0:01:23]} Be4 {[%emt 0:10:19]} 42. Rf7+ {[%emt 0:06:48]} Kg6 {[%emt 0:00:23]} 43. Rxc7 {[%emt 0:00:09]} Rxh3+ {[%emt 0:00:05]} 44. Ka4 {[%emt 0:07:59]} b5+ {[%emt 0:00:52]} 45. cxb5 {[%emt 0:00:52]} axb5+ {[%emt 0:00:15]} 46. Kb4 {[%emt 0:02:00]} Bxd5 {[%emt 0:01:44]} 47. Kxb5 {[%emt 0:00:02]} Rb3+ {[%emt 0:00:54]} 48. Ka5 {[%emt 0:00:37]} Rxb2 {[%emt 0:02:18]} 49. Rd1 {[%emt 0:05:11]} Bf3 {[%emt 0:00:58]} 50. Rf1 {[%emt 0:00:07]} Bxg4 {[%emt 0:03:14]} 51. Rg1 {[%emt 0:00:06]} Kf5 {[%emt 0:00:58]} 52. Rc8 {[%emt 0:01:50]} Be2 {[%emt 0:02:01]} 53. Rg2 {[%emt 0:00:25]} Ke4 {[%emt 0:00:54]} 54. Rg6 {[%emt 0:01:19]} Kd5 {[%emt 0:01:29]} 55. Rg5 {[%emt 0:00:23]} Bd3 {[%emt 0:00:34]} 56. Rc1 {[%emt 0:00:25]} Be4 {[%emt 0:01:33]} 57. Re1 $19 {[%emt 0:00:12]} Bd3 {[%emt 0:01:26]} 58. Rh5 {[%emt 0:00:55]} Rb1 {[%emt 0:01:29]} 59. Re3 {[%emt 0:00:18]} Bc4 {[%emt 0:00:20]} 60. Rg5 {[%emt 0:01:15]} Kc5 {[%emt 0:00:21]} 61. Rexe5+ {[%emt 0:00:01]} dxe5 {[%emt 0:00:08]} 62. Rxe5+ {[%emt 0:00:01]} Bd5 {[%emt 0:00:07]} 0-1

[Event "WYCC 2018 O18"]
[Site "Halkidiki"]
[Date "2018.10.24"]
[Round "6"]
[White "Manu David Suthandram R"]
[Black "Ozates, Tuna"]
[Result "1/2-1/2"]
[ECO "B31"]
[WhiteElo "1970"]
[BlackElo "2225"]
[Annotator "NA"]
[PlyCount "106"]
[EventDate "2018.10.20"]
[EventType "swiss"]
[EventCountry "GRE"]
[SourceTitle "playchess.com"]
[Source "ChessBase"]
[SourceQuality "1"]
[TimeControl "40/5400+30:1800+30"]

1. e4 {[%emt 0:00:00]} c5 {[%emt 0:00:00]} 2. Nf3 {[%emt 0:00:00]} Nc6 {[%emt 0:00:00]} 3. Bb5 {[%emt 0:00:19]} g6 {[%emt 0:00:00]} 4. O-O {[%emt 0:00:52]} Bg7 {[%emt 0:00:00]} 5. c3 {[%emt 0:00:05]} Nf6 {[%emt 0:00:00]} 6. Re1 {[%emt 0:00:45]} O-O {[%emt 0:00:00]} 7. d4 {[%emt 0:00:03]} d5 {[%emt 0:00:00]} 8. exd5 {[%emt 0:02:22]} Qxd5 {[%emt 0:00:14]} 9. c4 {[%emt 0:03:52] B31: Sicilian: 2...Nc6 3 Bb5 g6} Qd8 {[%emt 0:01:42]} (9... Qd6 10. d5 Nd4 11. Nxd4 cxd4 12. h3 a6 13. Ba4 e5 14. Bc2 b5 15. b3 e4 16. Bxe4 Nxe4 17. Rxe4 Bf5 18. Rxd4 {½-½ (34) Deepan Chakkravarthy,J (2519)-Potapov,P (2500) Pardubice 2018}) 10. d5 {[%emt 0:05:43]} Nd4 {[%emt 0:12:07]} 11. Nxd4 {[%emt 0:07:01]} cxd4 {[%emt 0:00:40]} 12. Na3 $146 {[%emt 0:08:29]} ({Predecessor:} 12. Qxd4 $11 Ng4 (12... a6 13. Ba4 b5 14. cxb5 Nxd5 15. Qd1 axb5 16. Bxb5 Bb7 {½-½ (67) Saidov,B (2297)-Mustafaev,J (2232) Tashkent 2007}) 13. Qc5) 12... a6 {[%emt 0:05:21]} 13. Ba4 {[%emt 0:00:05]} b5 {[%emt 0:00:58]} 14. cxb5 {[%emt 0:00:07]} Nxd5 {[%emt 0:00:33]} 15. Bg5 {[%emt 0:03:13]} Be6 {[%emt 0:16:59]} 16. bxa6 {[%emt 0:06:27]} Rxa6 {[%emt 0:00:30]} 17. Bb3 {[%emt 0:00:15]} Re8 {[%emt 0:09:04]} 18. Rc1 {[%emt 0:14:47]} h6 {[%emt 0:02:40]} 19. Bh4 {[%emt 0:01:56]} Nf4 {[%emt 0:02:14]} 20. Bg3 {[%emt 0:01:44]} Bxb3 {[%emt 0:01:17]} 21. Qxb3 {[%emt 0:01:17]} Ne6 {[%emt 0:00:20]} 22. Nc4 {[%emt 0:08:20]} Qa8 {[%emt 0:20:10]} 23. Nb6 {[%emt 0:05:54]} Rxb6 {[%emt 0:12:23]} 24. Qxb6 {[%emt 0:00:29]} Qxa2 {[%emt 0:00:47]} 25. Be5 {[%emt 0:12:30]} d3 {[%emt 0:04:43]} 26. Rcd1 {[%emt 0:04:21]} Qd5 {[%emt 0:00:12]} 27. Qe3 {[%emt 0:01:37]} Rd8 {[%emt 0:07:00]} 28. Bxg7 {[%emt 0:00:27]} Kxg7 {[%emt 0:00:01]} 29. Qe5+ {[%emt 0:01:15]} Qxe5 {[%emt 0:00:02]} 30. Rxe5 {[%emt 0:00:06]} Kf6 {[%emt 0:00:39]} 31. Re3 {[%emt 0:02:09]} Rb8 {[%emt 0:00:09]} 32. Rf3+ {[%emt 0:00:58]} Kg7 $16 {[%emt 0:01:15]} 33. Rfxd3 {[%emt 0:00:06]} Rxb2 {[%emt 0:00:07]} 34. Rd7 {[%emt 0:00:04]} Kf6 {[%emt 0:00:47]} 35. Re1 {[%emt 0:00:05]} Rb3 {[%emt 0:02:41]} 36. g3 {[%emt 0:00:34]} h5 {[%emt 0:00:05]} 37. h4 {[%emt 0:01:55]} Ra3 {[%emt 0:00:35]} 38. Kg2 {[%emt 0:00:37]} Rb3 {[%emt 0:00:11]} 39. Ra1 {[%emt 0:00:11]} Rb8 {[%emt 0:00:58]} 40. Ra6 {[%emt 0:00:00]} Rc8 {[%emt 0:00:00]} 41. Kh3 {[%emt 0:02:01]} Rc2 {[%emt 0:10:40]} 42. Kg2 {[%emt 0:02:12]} Re2 {[%emt 0:00:36]} 43. Rd3 {[%emt 0:00:06]} Kg7 {[%emt 0:01:07]} 44. Ra7 {[%emt 0:01:05]} Nc5 {[%emt 0:01:18]} 45. Rd5 {[%emt 0:01:50]} Ne4 {[%emt 0:04:45]} 46. Rxe7 {[%emt 0:13:46]} Rxf2+ {[%emt 0:04:21]} 47. Kg1 {[%emt 0:00:37]} Rd2 {[%emt 0:00:55]} 48. Rxd2 {[%emt 0:00:34]} Nxd2 {[%emt 0:00:01]} 49. Kf2 {[%emt 0:00:59]} Nc4 {[%emt 0:00:10]} 50. Rd7 {[%emt 0:01:00]} Ne5 {[%emt 0:00:27]} 51. Rd6 {[%emt 0:00:12]} Ng4+ {[%emt 0:00:15]} 52. Kf3 {[%emt 0:00:06]} Nh6 {[%emt 0:01:02]} 53. Kf4 {[%emt 0:00:12]} Ng4 {[%emt 0:00:11]} 1/2-1/2

[Event "WYCC 2018 O18"]
[Site "Halkidiki"]
[Date "2018.10.24"]
[Round "6"]
[White "Kadianis, Georgios"]
[Black "Alexiadis, Hristos"]
[Result "0-1"]
[ECO "B23"]
[WhiteElo "1928"]
[BlackElo "2263"]
[Annotator "NA"]
[PlyCount "58"]
[EventDate "2018.10.20"]
[EventType "swiss"]
[EventCountry "GRE"]
[SourceTitle "playchess.com"]
[Source "ChessBase"]
[SourceQuality "1"]
[TimeControl "40/5400+30:1800+30"]

1. e4 {[%emt 0:00:00]} c5 {[%emt 0:00:00]} 2. Nc3 {[%emt 0:01:49]} a6 {[%emt 0:02:07]} 3. g3 {[%emt 0:00:33]} b5 {[%emt 0:00:07]} 4. Bg2 {[%emt 0:00:38]} Bb7 {[%emt 0:00:09]} 5. d3 {[%emt 0:02:35]} e6 {[%emt 0:00:13]} 6. f4 {[%emt 0:01:17]} d5 {[%emt 0:04:17]} 7. Qe2 {[%emt 0:01:51]} Be7 {[%emt 0:06:50]} 8. Nf3 {[%emt 0:02:22]} Nc6 {[%emt 0:01:54]} 9. O-O {[%emt 0:01:28]} Nd4 {[%emt 0:08:28]} 10. Nxd4 {[%emt 0:02:12]} cxd4 {[%emt 0:00:25]} 11. Nd1 {[%emt 0:00:19]} Nf6 {[%emt 0:01:22]} 12. b3 {[%emt 0:14:14]} O-O {[%emt 0:06:43]} 13. Bb2 {[%emt 0:02:25]} Bc5 {[%emt 0:04:36]} 14. Nf2 {[%emt 0:08:35]} Rc8 {[%emt 0:00:08]} 15. e5 {[%emt 0:04:13]} Nd7 {[%emt 0:00:56]} 16. g4 {[%emt 0:07:09]} h6 {[%emt 0:18:50]} 17. Nh3 {[%emt 0:08:27]} f6 {[%emt 0:01:02] [#]} 18. g5 $14 {[%emt 0:11:37]} hxg5 {[%emt 0:09:03]} 19. exf6 {[%emt 0:03:20]} Qxf6 {[%emt 0:00:05]} 20. fxg5 {[%emt 0:00:36]} Qe5 {[%emt 0:00:06]} 21. Qg4 {[%emt 0:10:01]} Bd6 {[%emt 0:00:23]} 22. Nf4 {[%emt 0:01:55]} Qe3+ {[%emt 0:01:37]} 23. Kh1 {[%emt 0:00:28]} Rxf4 {[%emt 0:01:03]} 24. Rxf4 {[%emt 0:03:11]} Bxf4 {[%emt 0:02:48]} 25. Rg1 {[%emt 0:02:46]} Qe5 {[%emt 0:06:05]} 26. Bxd4 {[%emt 0:02:15]} Qf5 {[%emt 0:00:04]} 27. Qxf5 {[%emt 0:02:48]} exf5 {[%emt 0:00:05]} 28. c4 {[%emt 0:00:22]} Bxg5 {[%emt 0:00:18]} 29. cxd5 {[%emt 0:00:59]} Bf6 {[%emt 0:00:05]} 0-1

[Event "WYCC 2018 O18"]
[Site "Halkidiki"]
[Date "2018.10.24"]
[Round "6"]
[White "Zhu, Brandon"]
[Black "Tsomaia, Nikoloz"]
[Result "0-1"]
[ECO "E61"]
[WhiteElo "1914"]
[BlackElo "2201"]
[Annotator "NA"]
[PlyCount "134"]
[EventDate "2018.10.20"]
[EventType "swiss"]
[EventCountry "GRE"]
[SourceTitle "playchess.com"]
[Source "ChessBase"]
[SourceQuality "1"]
[TimeControl "40/5400+30:1800+30"]

1. d4 {[%emt 0:00:00]} Nf6 {[%emt 0:00:00]} 2. c4 {[%emt 0:00:00]} g6 {[%emt 0:00:00]} 3. Nc3 {[%emt 0:00:00]} c5 {[%emt 0:00:00]} 4. d5 {[%emt 0:00:08]} Bg7 {[%emt 0:00:00]} 5. e4 {[%emt 0:00:10] LiveBook: 1747 Games} O-O {[%emt 0:00:00]} 6. Nge2 {[%emt 0:00:33]} d6 {[%emt 0:00:08]} 7. Ng3 {[%emt 0:00:07]} e6 {[%emt 0:00:28]} 8. Be2 {[%emt 0:00:43]} Na6 {[%emt 0:03:47] E70: King's Indian: Miscellaneous lines with 4 e4, including 5 Nge2 and 5 Bd3 0-0 6 Nge2} (8... exd5 9. cxd5 a6 10. a4 h5 11. Bg5 Qc7 12. Qd2 Nbd7 13. O-O Rb8 14. f4 Nh7 15. Bh4 c4 16. Kh1 b5 17. axb5 axb5 18. b4 {1-0 (36) Le,Q (2736)-Sivuk,V (2526) Hanoi 2018}) 9. O-O {[%emt 0:00:33]} Nc7 {[%emt 0:05:26]} 10. h3 {[%emt 0:02:56]} exd5 {[%emt 0:06:22]} 11. cxd5 {[%emt 0:00:11]} Re8 {[%emt 0:00:13]} 12. a4 {[%emt 0:01:56]} a6 {[%emt 0:00:03]} 13. Bg5 {[%emt 0:02:21]} h6 {[%emt 0:00:25]} 14. Be3 {[%emt 0:00:15]} Rb8 {[%emt 0:00:06]} 15. a5 $146 {[%emt 0:03:01]} ({Predecessor:} 15. Qd2 b5 16. axb5 axb5 17. Bxh6 {0-1 (33) Fiala,J (1983)-Golcman,E (2304) Olomouc 2009}) 15... b5 {[%emt 0:14:56]} 16. axb6 {[%emt 0:00:16]} Rxb6 {[%emt 0:00:04]} 17. Qd2 {[%emt 0:01:24]} Kh7 {[%emt 0:03:57]} 18. Kh1 {[%emt 0:10:54]} Nb5 {[%emt 0:03:34]} 19. Nxb5 {[%emt 0:04:03]} axb5 {[%emt 0:00:07]} 20. f3 {[%emt 0:02:12]} b4 {[%emt 0:04:44]} 21. Ra8 {[%emt 0:02:47]} Nd7 {[%emt 0:00:47]} 22. Rfa1 {[%emt 0:01:55]} Qf6 {[%emt 0:01:51]} 23. Rb1 {[%emt 0:09:22]} Rb8 {[%emt 0:02:19]} 24. Rxb8 {[%emt 0:08:43]} Nxb8 {[%emt 0:00:01]} 25. Nf1 {[%emt 0:01:43]} Nd7 {[%emt 0:01:13]} 26. Bb5 {[%emt 0:03:34]} Re7 {[%emt 0:00:31]} 27. Bf4 {[%emt 0:02:55]} Ne5 {[%emt 0:01:30]} 28. Bg3 {[%emt 0:02:11]} g5 {[%emt 0:00:51]} 29. Be2 $11 {[%emt 0:02:36]} Ra7 {[%emt 0:00:17]} 30. Ne3 {[%emt 0:00:48]} Ra2 {[%emt 0:09:13]} 31. Qc2 {[%emt 0:08:12]} Kg8 {[%emt 0:00:49]} 32. Qb3 {[%emt 0:03:04]} Ra7 {[%emt 0:00:26]} 33. Rf1 {[%emt 0:05:26]} Ng6 {[%emt 0:01:29]} 34. Nc4 {[%emt 0:01:26]} Ba6 {[%emt 0:01:43]} 35. Rf2 {[%emt 0:00:45]} Bxc4 {[%emt 0:00:27]} 36. Bxc4 {[%emt 0:00:18]} Nf4 {[%emt 0:01:09]} 37. Qe3 {[%emt 0:03:01]} Ra1+ {[%emt 0:00:32]} 38. Kh2 {[%emt 0:00:34]} Nh5 {[%emt 0:00:20]} 39. e5 {[%emt 0:02:39]} dxe5 {[%emt 0:03:44]} 40. Re2 {[%emt 0:00:00]} Nf4 {[%emt 0:00:00]} 41. Re1 {[%emt 0:06:22]} Rxe1 {[%emt 0:07:27]} 42. Qxe1 {[%emt 0:02:58]} Bf8 {[%emt 0:01:05]} 43. Qe4 {[%emt 0:01:08]} Ng6 {[%emt 0:02:15]} 44. d6 {[%emt 0:06:55]} Bxd6 {[%emt 0:00:46]} 45. b3 {[%emt 0:00:40]} Kg7 {[%emt 0:01:07]} 46. Kg1 {[%emt 0:01:57]} Nf8 {[%emt 0:03:33]} 47. Bd3 {[%emt 0:02:23]} Ne6 {[%emt 0:00:37]} 48. Bf2 {[%emt 0:03:05]} Nf4 {[%emt 0:02:29]} 49. Bc4 {[%emt 0:00:52]} Qg6 {[%emt 0:01:43]} 50. Qb7 {[%emt 0:01:27]} h5 {[%emt 0:03:51]} 51. Qd7 {[%emt 0:00:48]} Bf8 {[%emt 0:00:12]} 52. Be3 {[%emt 0:01:11]} Qf6 {[%emt 0:01:33]} 53. Bc1 {[%emt 0:02:21]} Ng6 {[%emt 0:03:05]} 54. Bb2 {[%emt 0:01:31]} Be7 {[%emt 0:00:45]} 55. Qd5 {[%emt 0:00:59]} Bd6 {[%emt 0:00:17]} 56. Qc6 {[%emt 0:03:11]} Ne7 {[%emt 0:01:38]} 57. Qd7 {[%emt 0:02:03]} Nf5 {[%emt 0:06:02]} 58. Bd5 {[%emt 0:06:21]} c4 {[%emt 0:03:53]} 59. Bxc4 {[%emt 0:04:48]} Bc5+ {[%emt 0:00:05]} 60. Kh1 {[%emt 0:01:13]} Ng3+ {[%emt 0:06:09]} 61. Kh2 {[%emt 0:00:06]} Qf4 {[%emt 0:00:46]} 62. Bxe5+ {[%emt 0:01:24]} Qxe5 {[%emt 0:00:07]} 63. Qxf7+ {[%emt 0:00:21]} Kh6 {[%emt 0:00:05]} 64. f4 {[%emt 0:00:58]} gxf4 {[%emt 0:00:01]} 65. Bd3 {[%emt 0:00:23]} Bg1+ {[%emt 0:00:11]} 66. Kxg1 {[%emt 0:00:16]} Qe1+ {[%emt 0:00:05]} 67. Kh2 {[%emt 0:00:04]} Qh1# {[%emt 0:00:05]} 0-1

[Event "WYCC 2018 O18"]
[Site "Halkidiki"]
[Date "2018.10.24"]
[Round "6"]
[White "Vourlis-Koletis, Miltiadis"]
[Black "Galiana Fernandez, Adrian"]
[Result "1/2-1/2"]
[ECO "D85"]
[WhiteElo "1839"]
[BlackElo "2261"]
[Annotator "NA"]
[PlyCount "67"]
[EventDate "2018.10.20"]
[EventType "swiss"]
[EventCountry "GRE"]
[SourceTitle "playchess.com"]
[Source "ChessBase"]
[SourceQuality "1"]
[TimeControl "40/5400+30:1800+30"]

1. d4 {[%emt 0:00:00]} Nf6 {[%emt 0:00:00]} 2. c4 {[%emt 0:00:00]} g6 {[%emt 0:00:00]} 3. Nc3 {[%emt 0:00:00]} d5 {[%emt 0:00:00]} 4. cxd5 {[%emt 0:00:24]} Nxd5 {[%emt 0:00:00]} 5. Bd2 {[%emt 0:00:09]} Nb6 {[%emt 0:00:00]} 6. Nf3 {[%emt 0:02:37]} Bg7 {[%emt 0:00:40]} 7. Bf4 {[%emt 0:03:38] D90: Grünfeld: 4 Nf3 Bg7 sidelines} O-O {[%emt 0:24:04]} 8. Rc1 {[%emt 0:08:18]} N8d7 $146 {[%emt 0:01:58]} ({Predecessor:} 8... c5 9. dxc5 Bxc3+ 10. Rxc3 Qxd1+ 11. Kxd1 Nd5 12. Rc4 Nxf4 13. Rxf4 Be6 14. e3 Rd8+ 15. Kc2 Rc8 {½-½ (59) L'Ami,E (2613)-Sevian,S (2511) Wijk aan Zee 2015}) 9. Nb5 {[%emt 0:02:57]} e5 {[%emt 0:05:21]} 10. Nxe5 {[%emt 0:03:51]} Nd5 {[%emt 0:12:14]} 11. Nxc7 {[%emt 0:11:14]} Nxf4 {[%emt 0:19:52]} 12. Nxa8 {[%emt 0:00:43]} Nxe5 {[%emt 0:00:11]} 13. dxe5 {[%emt 0:00:08]} Nd5 {[%emt 0:00:05] [#]} 14. Nc7 $1 {[%emt 0:04:18]} Nxc7 {[%emt 0:01:31]} 15. Qxd8 {[%emt 0:00:10]} Rxd8 {[%emt 0:00:03]} 16. Rxc7 {[%emt 0:00:10]} Bxe5 {[%emt 0:00:07]} 17. Rc2 {[%emt 0:01:39]} Be6 {[%emt 0:00:53]} 18. e3 {[%emt 0:02:07]} Bxa2 {[%emt 0:00:23]} 19. f4 {[%emt 0:03:20]} Bb3 {[%emt 0:00:49]} 20. Rd2 {[%emt 0:00:15]} Rxd2 {[%emt 0:00:17]} 21. Kxd2 {[%emt 0:00:05]} Bxb2 {[%emt 0:00:05]} 22. Be2 {[%emt 0:00:22]} Ba2 {[%emt 0:02:07]} 23. Kc2 {[%emt 0:01:36]} Bf6 {[%emt 0:01:12]} 24. Rd1 {[%emt 0:02:15]} Be6 {[%emt 0:01:27]} 25. Bf3 {[%emt 0:01:41]} b6 {[%emt 0:04:02]} 26. Bd5 {[%emt 0:00:28]} Bg4 {[%emt 0:00:10]} 27. Rc1 {[%emt 0:01:31]} Be7 {[%emt 0:00:49]} 28. h3 $14 {[%emt 0:01:27]} Bd7 {[%emt 0:00:37]} 29. Rd1 {[%emt 0:01:00]} Ba4+ {[%emt 0:00:42]} 30. Bb3 {[%emt 0:00:08]} Bc6 {[%emt 0:00:09]} 31. Bd5 {[%emt 0:05:26]} Ba4+ {[%emt 0:00:05]} 32. Bb3 {[%emt 0:00:13]} Bc6 {[%emt 0:00:04]} 33. Bd5 {[%emt 0:00:12]} Ba4+ {[%emt 0:00:04]} 34. Bb3 {[%emt 0:00:10]} 1/2-1/2

[Event "WYCC 2018 O18"]
[Site "Halkidiki"]
[Date "2018.10.26"]
[Round "7"]
[White "Ioannidis, Evgenios"]
[Black "Krstic, Milos"]
[Result "1-0"]
[ECO "E20"]
[WhiteElo "2407"]
[BlackElo "2171"]
[Annotator "NA"]
[PlyCount "89"]
[EventDate "2018.10.20"]
[EventType "swiss"]
[EventCountry "GRE"]
[SourceTitle "playchess.com"]
[Source "ChessBase"]
[SourceQuality "1"]
[TimeControl "40/5400+30:1800+30"]

1. d4 {[%emt 0:00:00]} Nf6 {[%emt 0:00:00]} 2. c4 {[%emt 0:00:00]} e6 {[%emt 0:00:00]} 3. Nc3 {[%emt 0:00:16]} Bb4 {[%emt 0:00:00]} 4. g3 {[%emt 0:00:34]} O-O {[%emt 0:02:57]} 5. Bg2 {[%emt 0:00:18]} d5 {[%emt 0:01:32]} 6. Nf3 {[%emt 0:00:30]} c5 {[%emt 0:03:06] LiveBook: 111 Games} 7. dxc5 {[%emt 0:00:39]} Bxc3+ {[%emt 0:02:31]} 8. bxc3 {[%emt 0:00:09]} Qa5 {[%emt 0:00:22]} 9. O-O {[%emt 0:04:05]} Qxc3 $14 {[%emt 0:07:03]} 10. Qd4 {[%emt 0:13:57]} Qxc4 {[%emt 0:32:00]} 11. Qxc4 {[%emt 0:00:10]} dxc4 {[%emt 0:00:04]} 12. Ne5 {[%emt 0:00:22]} Nfd7 {[%emt 0:01:06]} 13. Nxd7 {[%emt 0:09:10]} Nxd7 {[%emt 0:00:28]} 14. Ba3 {[%emt 0:00:30]} Ne5 {[%emt 0:16:51]} 15. c6 {[%emt 0:10:23]} Nxc6 {[%emt 0:00:41]} 16. Bxf8 {[%emt 0:00:08]} Kxf8 {[%emt 0:00:01]} 17. Rab1 {[%emt 0:00:12]} Nd4 {[%emt 0:25:06]} 18. e3 {[%emt 0:02:32]} Ne2+ {[%emt 0:00:06]} 19. Kh1 {[%emt 0:00:05]} Rb8 {[%emt 0:01:44]} 20. Rb2 {[%emt 0:00:51]} Nc3 {[%emt 0:00:04]} 21. Rc1 {[%emt 0:00:05]} Na4 {[%emt 0:00:20]} 22. Rb4 {[%emt 0:00:10]} Nb6 {[%emt 0:02:22]} 23. a4 {[%emt 0:00:06]} Bd7 {[%emt 0:01:12]} 24. a5 {[%emt 0:00:28]} Nd5 {[%emt 0:00:08]} 25. Rbxc4 {[%emt 0:00:12]} a6 {[%emt 0:00:20]} 26. Rh4 {[%emt 0:17:54]} h6 {[%emt 0:00:59]} 27. Bxd5 {[%emt 0:01:17]} exd5 {[%emt 0:00:05]} 28. Rc7 {[%emt 0:00:04]} Bc6 {[%emt 0:01:48]} 29. Rf4 {[%emt 0:01:21]} f6 {[%emt 0:00:10]} 30. Rg4 {[%emt 0:01:20]} g5 {[%emt 0:00:07]} 31. h4 {[%emt 0:08:23]} d4+ {[%emt 0:00:43]} 32. Kg1 {[%emt 0:00:04]} dxe3 {[%emt 0:01:24]} 33. fxe3 {[%emt 0:00:04]} Re8 {[%emt 0:00:21]} 34. Rd4 {[%emt 0:01:41]} Rxe3 {[%emt 0:00:36]} 35. Rd8+ {[%emt 0:00:04]} Be8 {[%emt 0:00:10]} 36. Rd6 {[%emt 0:00:48]} Rxg3+ {[%emt 0:00:54]} 37. Kf2 {[%emt 0:00:05]} Rg4 {[%emt 0:00:35]} 38. Rxf6+ {[%emt 0:00:54]} Kg8 {[%emt 0:00:03]} 39. Rxb7 {[%emt 0:00:17]} Rxh4 {[%emt 0:00:59]} 40. Rxa6 {[%emt 0:00:00]} Rf4+ {[%emt 0:00:00]} 41. Ke3 {[%emt 0:01:12]} Kf8 {[%emt 0:02:26]} 42. Ra8 {[%emt 0:00:40]} Rf6 {[%emt 0:00:09]} 43. Rbb8 {[%emt 0:00:12]} Re6+ {[%emt 0:00:03]} 44. Kf2 {[%emt 0:00:17]} Kf7 {[%emt 0:00:25]} 45. Rxe8 {[%emt 0:00:14]} 1-0

[Event "WYCC 2018 O18"]
[Site "Halkidiki"]
[Date "2018.10.26"]
[Round "7"]
[White "Ayats Llobera, Gerard"]
[Black "Le, Minh Hoang"]
[Result "1/2-1/2"]
[ECO "B11"]
[WhiteElo "2399"]
[BlackElo "2271"]
[Annotator "NA"]
[PlyCount "81"]
[EventDate "2018.10.20"]
[EventType "swiss"]
[EventCountry "GRE"]
[SourceTitle "playchess.com"]
[Source "ChessBase"]
[SourceQuality "1"]
[TimeControl "40/5400+30:1800+30"]

1. e4 {[%emt 0:00:00]} c6 {[%emt 0:00:11]} 2. Nc3 {[%emt 0:00:00]} d5 {[%emt 0:00:09]} 3. Nf3 {[%emt 0:00:00]} Bg4 {[%emt 0:00:25]} 4. h3 {[%emt 0:00:25]} Bxf3 {[%emt 0:00:08]} 5. Qxf3 {[%emt 0:00:02]} Nf6 {[%emt 0:00:20]} 6. d3 {[%emt 0:00:06]} e6 {[%emt 0:00:14]} 7. Bd2 {[%emt 0:01:01]} Nbd7 {[%emt 0:01:05]} 8. g4 {[%emt 0:01:28]} Bc5 {[%emt 0:08:09]} (8... h6 $11 {hält das Gleichgewicht.}) 9. g5 {[%emt 0:05:02]} Ng8 {[%emt 0:01:14]} 10. h4 {[%emt 0:03:23]} Ne7 {[%emt 0:02:46]} 11. h5 {[%emt 0:03:11]} d4 {[%emt 0:10:04]} 12. Ne2 {[%emt 0:08:40]} Qb6 {[%emt 0:01:19]} 13. O-O-O $16 {[%emt 0:03:10]} Rf8 {[%emt 0:05:54]} 14. Qg3 {[%emt 0:08:17]} O-O-O {[%emt 0:01:39]} 15. Bh3 {[%emt 0:01:06]} Bb4 {[%emt 0:21:19]} 16. Bxb4 {[%emt 0:13:26]} Qxb4 {[%emt 0:00:06]} 17. Kb1 {[%emt 0:00:02]} Nb6 {[%emt 0:09:05]} 18. Nc1 {[%emt 0:07:16]} Qd6 {[%emt 0:09:02]} 19. Ne2 {[%emt 0:04:30]} c5 {[%emt 0:02:17]} 20. f4 {[%emt 0:04:32]} Kb8 {[%emt 0:01:05]} 21. Rhg1 {[%emt 0:11:22]} Nc6 {[%emt 0:03:04]} 22. g6 {[%emt 0:00:37]} hxg6 {[%emt 0:00:10]} 23. hxg6 {[%emt 0:00:04]} f6 {[%emt 0:00:17]} 24. Bf1 {[%emt 0:09:06]} Rh8 {[%emt 0:02:57]} 25. Nc1 {[%emt 0:03:24]} e5 {[%emt 0:00:34]} 26. f5 {[%emt 0:00:17]} a5 {[%emt 0:00:13]} 27. Be2 {[%emt 0:00:36]} Rh6 {[%emt 0:00:21]} 28. Rh1 {[%emt 0:00:42]} Rdh8 {[%emt 0:00:04]} 29. Bf3 {[%emt 0:06:09]} c4 {[%emt 0:00:08]} 30. Rxh6 {[%emt 0:00:33]} Rxh6 {[%emt 0:00:05]} 31. dxc4 {[%emt 0:00:12]} Nxc4 {[%emt 0:02:57]} 32. Be2 {[%emt 0:00:01]} Qb4 {[%emt 0:03:50]} 33. Bxc4 {[%emt 0:00:24]} Qxc4 {[%emt 0:00:05]} 34. a3 {[%emt 0:02:16]} Ka7 {[%emt 0:02:47]} 35. Nd3 {[%emt 0:00:15]} Ne7 {[%emt 0:01:11]} 36. Qg2 {[%emt 0:04:31]} Qc6 {[%emt 0:01:09]} 37. Rh1 {[%emt 0:00:07]} Rxh1+ {[%emt 0:00:41]} 38. Qxh1 {[%emt 0:00:01]} Nxf5 {[%emt 0:00:06]} 39. Qe1 {[%emt 0:00:01]} Ne3 {[%emt 0:05:27]} 40. Qxa5+ {[%emt 0:00:00]} Kb8 {[%emt 0:00:00]} 41. Nb4 {[%emt 0:06:26]} 1/2-1/2